bitfinex-derivatives/quotes_ETHF0:USTF0_20240905
["timestamp","ask_amount","ask_price","bid_price","bid_amount"]
[1725539726604,0.41784,2393.4,2393.0,3.62569]
[1725539726804,3.85,2393.7,2393.3,3.2078]
[1725539727005,0.41783,2393.4,2393.3,3.2078]
[1725539727208,3.85626606,2393.7,2393.3,3.2078]
[1725539727501,0.41782,2393.5,2393.3,3.2078]
[1725539727804,0.41783,2393.4,2393.3,3.2078]
[1725539728401,0.41786,2393.3,2393.0,3.2078]
[1725539728596,3.85,2393.5,2393.0,3.2078]
[1725539728801,0.41785,2393.3,2393.0,3.2078]
[1725539729304,0.41788,2393.1,2393.0,3.2078]
[1725539730403,10.1784,2393.1,2392.6,3.2078]
[1725539730704,0.41795,2392.7,2392.6,3.2078]
[1725539730895,3.85,2392.7,2392.3,0.00626606]
[1725539731102,0.41799,2392.5,2392.3,0.00626606]
[1725539731318,0.41815,2391.6,2391.1,3.2078]
[1725539731605,3.85,2391.7,2391.4,3.2078]
[1725539731999,3.85,2392.0,2391.5,4.59975]
[1725539732203,3.85626606,2392.0,2391.7,3.2078]
[1725539732600,0.00626606,2392.0,2391.8,4.1808]
[1725539732796,0.00626606,2392.0,2391.8,7.40841]
[1725539733005,0.00626606,2392.0,2391.9,4.1808]
[1725539734502,0.00626606,2392.0,2391.9,10.1808]
[1725539734707,4.26794,2392.8,2391.9,10.1808]
[1725539734905,3.85,2392.8,2392.3,3.2078]
[1725539735115,3.85,2392.8,2392.4,1.4588]
[1725539735305,3.85,2392.8,2392.6,3.2078]
[1725539735615,0.00626606,2392.9,2392.6,3.2078]
[1725539736109,3.85,2392.8,2392.6,3.2078]
[1725539736706,1.46284,2392.7,2392.2,3.2078]
[1725539737016,0.00626606,2392.9,2392.2,3.2078]
[1725539737313,0.41795,2392.7,2392.2,3.2078]
[1725539737818,0.41797,2392.6,2392.2,3.2078]
[1725539738009,7.0578,2392.6,2392.2,3.2078]
[1725539738199,4.26802,2392.3,2392.2,3.2078]
[1725539738399,4.26802,2392.3,2391.9,1.526]
[1725539738400,0.41804,2392.2,2391.9,1.526]
[1725539738709,0.41805,2392.2,2391.9,1.526]
[1725539738900,0.41807,2392.1,2391.9,1.526]
[1725539739105,0.41808,2392.0,2391.9,1.526]
[1725539739307,3.85,2392.1,2391.9,1.526]
[1725539739507,0.41809,2392.0,2391.8,4.6666]
[1725539739819,3.85,2392.1,2391.8,4.6666]
[1725539740023,0.41809,2391.9,2391.8,1.4588]
[1725539740310,7.0578,2392.1,2391.8,1.4588]
[1725539740516,7.47587,2392.1,2391.8,1.4588]
[1725539740813,7.0578,2392.1,2391.8,1.4588]
[1725539741008,0.41809,2392.0,2391.8,1.4588]
[1725539741317,0.41809,2391.9,2391.5,3.21406606]
[1725539741528,4.26811,2391.8,2391.5,3.21406606]
[1725539741715,3.85,2391.8,2391.5,3.21406606]
[1725539742205,0.41815,2391.6,2391.5,0.00626606]
[1725539742406,0.41814,2391.7,2391.5,0.00626606]
[1725539742717,0.41815,2391.6,2391.5,0.00626606]
[1725539743312,4.59975,2391.6,2391.5,0.00626606]
[1725539743516,4.59975,2391.6,2391.2,4.197]
[1725539743517,0.4182,2391.3,2391.2,4.197]
[1725539743817,0.4182,2391.3,2390.9,1.4732]
[1725539743818,3.85,2391.3,2390.9,1.4732]
[1725539744215,0.41824,2391.1,2390.9,1.4732]
[1725539744409,0.41825,2391.0,2390.9,1.4732]
[1725539744610,0.41825,2391.1,2390.9,1.4732]
[1725539745209,0.00626606,2391.2,2391.0,4.1824]
[1725539745611,0.00626606,2391.2,2391.1,4.1824]
[1725539746410,0.00626606,2391.2,2391.1,7.3902]
[1725539747515,0.00626606,2391.2,2391.1,3.2078]
[1725539747815,0.41824,2391.1,2390.9,1.4732]
[1725539748022,0.42449606,2391.2,2390.9,1.4732]
[1725539748221,0.41823,2391.1,2390.9,1.4732]
[1725539748607,0.42448606,2391.2,2390.9,1.4732]
[1725539748814,0.00626606,2391.2,2390.9,1.4732]
[1725539749014,0.00626606,2391.2,2391.1,3.2078]
[1725539749222,0.00626606,2391.2,2391.1,7.80843]
[1725539749523,0.00626606,2391.2,2391.1,13.3902]
[1725539749814,0.00626606,2391.2,2391.1,13.80843]
[1725539750416,0.0331,2391.4,2391.3,0.4182]
[1725539750621,0.0331,2391.4,2391.2,4.59981]
[1725539750813,0.0331,2391.4,2391.1,3.62602]
[1725539751015,0.45128,2391.4,2391.1,7.80762]
[1725539751216,0.45128,2391.4,2391.1,7.3894]
[1725539751423,0.0331,2391.4,2391.1,3.2078]
[1725539751718,0.4182,2391.3,2391.1,3.2078]
[1725539752124,0.4182,2391.3,2391.2,4.1824]
[1725539752318,0.0331,2391.4,2391.2,4.1824]
[1725539752520,0.4182,2391.3,2391.1,3.2078]
[1725539752918,0.41822,2391.2,2391.1,3.2078]
[1725539753118,0.0331,2391.4,2391.1,3.2078]
[1725539753413,0.0331,2391.4,2391.3,0.4182]
[1725539753810,0.0331,2391.4,2391.3,4.5998]
[1725539754419,0.0331,2391.4,2391.3,4.1816]
[1725539754926,0.0331,2391.4,2391.2,1.4471]
[1725539754927,0.45128,2391.4,2391.2,1.4471]
[1725539755127,0.4182,2391.3,2391.1,3.2078]
[1725539755724,0.0331,2391.4,2391.1,3.2078]
[1725539755917,0.41822,2391.2,2391.1,3.2078]
[1725539756123,4.26822,2391.2,2390.9,2.8721]
[1725539756323,0.41825,2391.0,2390.9,1.4732]
[1725539756629,0.41827,2390.9,2390.8,0.00626606]
[1725539756833,1.46395,2390.9,2390.8,0.00626606]
[1725539757129,0.41827,2390.9,2390.8,0.00626606]
[1725539759226,4.26826,2391.0,2390.8,0.00626606]
[1725539759429,1.3987,2391.1,2390.8,3.63234606]
[1725539759629,1.3987,2391.1,2390.8,3.21406606]
[1725539759630,1.81694,2391.1,2390.8,3.21406606]
[1725539760020,0.41827,2390.9,2390.8,3.21406606]
[1725539760531,0.41827,2390.9,2390.8,0.00626606]
[1725539760829,1.46395,2390.9,2390.8,0.00626606]
[1725539761416,0.41827,2390.9,2390.8,0.00626606]
[1725539762232,11.22808,2390.9,2390.1,7.4048]
[1725539762524,3.85,2390.2,2389.4,11.036]
[1725539762731,3.85,2389.5,2389.4,4.197]
[1725539762919,3.85,2389.5,2389.1,3.62637]
[1725539763122,3.85,2389.5,2389.1,3.2078]
[1725539763327,3.85,2389.2,2389.1,0.00626606]
[1725539764123,4.26857,2389.2,2389.1,0.00626606]
[1725539764324,17.2434,2389.2,2388.4,4.197]
[1725539764524,3.85,2388.7,2388.1,3.2078]
[1725539764728,7.80856121,2389.4,2388.4,3.2078]
[1725539764729,5.84983209,2389.4,2388.4,3.2078]
[1725539765032,3.85,2389.3,2389.2,3.2078]
[1725539766027,1.4747,2389.4,2389.2,3.2078]
[1725539766223,3.85626606,2389.5,2389.2,3.2078]
[1725539767029,3.85,2389.3,2389.2,3.2078]
[1725539768037,0.00626606,2389.5,2389.2,3.2078]
[1725539768426,0.42478606,2389.5,2389.2,3.2078]
[1725539769042,0.00626606,2389.5,2389.2,3.2078]
[1725539769336,0.00626606,2389.5,2389.3,0.41855]
[1725539769632,0.41858,2389.1,2389.0,0.0062793]
[1725539770033,4.60418,2389.1,2389.0,0.0062793]
[1725539770225,6.08168,2389.1,2389.0,0.0062793]
[1725539770425,1.89608,2389.1,2389.0,0.0062793]
[1725539771037,6.08168,2389.1,2389.0,0.0062793]
[1725539771234,12.08168,2389.1,2389.0,0.0062793]
[1725539771435,6.08168,2389.1,2389.0,0.0062793]
[1725539771733,12.08168,2389.1,2389.0,0.0062793]
[1725539773030,13.12815,2389.1,2389.0,0.0062793]
[1725539773236,0.41867,2388.7,2388.4,4.197]
[1725539773440,4.02,2388.6,2388.3,3.2078]
[1725539773739,4.02,2388.6,2387.8,4.7477]
[1725539774044,3.2078,2388.9,2387.8,4.7477]
[1725539774045,4.43875,2388.2,2387.8,3.2078]
[1725539774341,4.4450193,2388.2,2387.8,3.2078]
[1725539774536,4.0262793,2388.2,2387.7,3.2078]
[1725539774737,4.0262793,2388.2,2388.1,0.41876]
[1725539774738,0.0062793,2388.2,2388.1,0.41876]
[1725539774944,0.0062793,2388.2,2388.0,3.62657]
[1725539775133,0.0062793,2388.2,2388.1,0.41876]
[1725539775443,0.0062793,2388.2,2388.0,0.41878]
[1725539775736,0.0062793,2388.2,2387.9,3.2078]
[1725539775737,0.0062793,2388.2,2387.9,3.62659]
[1725539775940,0.0062793,2388.2,2387.8,3.2078]
[1725539775941,4.0262793,2388.2,2387.8,3.2078]
[1725539776239,4.0262793,2388.2,2388.1,3.62656]
[1725539776240,0.0062793,2388.2,2388.1,3.62656]
[1725539776442,0.0062793,2388.2,2388.1,0.41876]
[1725539776736,0.0062793,2388.2,2388.1,3.62656]
[1725539777145,0.0062793,2388.2,2388.1,7.81376]
[1725539777637,0.0062793,2388.2,2388.1,13.81376]
[1725539779045,0.0062793,2388.2,2388.1,3.62656]
[1725539779239,0.0062793,2388.2,2388.1,7.81376]
[1725539781136,0.0062793,2388.2,2388.1,3.2078]
[1725539781342,0.0062793,2388.2,2388.1,3.62656]
[1725539781937,4.02,2389.1,2388.1,13.81376]
[1725539782140,1.82061,2389.0,2388.6,3.2078]
[1725539782343,4.02,2389.1,2388.9,3.2078]
[1725539782533,4.43858,2389.1,2388.7,0.41865]
[1725539782736,4.02,2389.1,2389.0,0.4186]
[1725539783143,0.0062793,2389.3,2389.2,0.41857]
[1725539783340,0.0062793,2389.3,2389.2,3.2078]
[1725539783843,0.0062793,2389.3,2389.2,3.62637]
[1725539784031,4.02,2389.8,2389.2,7.3934]
[1725539784239,4.02,2389.8,2389.2,3.62636]
[1725539784537,0.41849,2389.7,2389.5,3.2078]
[1725539784944,0.41848,2389.7,2389.5,3.2078]
[1725539785138,4.0262793,2389.8,2389.5,3.2078]
[1725539785339,0.0062793,2389.8,2389.5,3.2078]
[1725539785539,4.0262793,2389.8,2389.4,3.2078]
[1725539785740,4.0262793,2389.8,2389.7,3.2078]
[1725539785937,0.0062793,2389.8,2389.7,3.62628]
[1725539786345,0.0062793,2389.8,2389.7,7.81108]
[1725539786643,0.0062793,2389.8,2389.7,7.3926]
[1725539786842,0.0062793,2389.8,2389.7,4.1848]
[1725539787039,0.0062793,2389.8,2389.7,7.3926]
[1725539787336,0.0062793,2389.8,2389.7,3.2078]
[1725539787938,0.0062793,2389.8,2389.6,0.41849]
[1725539787939,3.8662793,2389.8,2389.3,7.4048]
[1725539788247,3.86,2389.4,2389.3,7.4048]
[1725539788846,5.77368,2389.7,2389.3,7.81195]
[1725539789044,5.77368,2389.7,2389.3,3.62635]
[1725539789245,3.86,2389.7,2389.6,3.2078]
[1725539789547,4.27849,2389.7,2389.3,0.41854]
[1725539789946,4.27849,2389.7,2389.5,3.2078]
[1725539790146,4.27849,2389.7,2389.3,0.41854]
[1725539790147,0.4185,2389.6,2389.4,3.2078]
[1725539790650,3.86,2389.5,2389.2,0.41856]
[1725539790847,3.86,2389.5,2388.9,5.6075]
[1725539790848,3.86,2389.5,2389.4,3.2078]
[1725539791052,3.86,2389.5,2389.4,3.62633]
[1725539791344,3.86,2389.7,2389.5,0.4185]
[1725539791559,0.0062793,2389.8,2389.7,0.41848]
[1725539791753,0.0062793,2389.8,2389.7,3.62628]
[1725539791951,0.0062793,2389.8,2389.6,3.62629]
[1725539792151,0.0062793,2389.8,2389.6,3.62628]
[1725539792450,0.0062793,2389.8,2389.7,4.60328]
[1725539792852,0.0062793,2389.8,2389.7,4.1848]
[1725539793043,3.8662793,2389.8,2389.6,3.2078]
[1725539793244,3.8662793,2389.8,2389.6,3.62629]
[1725539793444,3.8662793,2389.8,2389.6,7.3926]
[1725539793645,3.8662793,2389.8,2389.7,0.41848]
[1725539794049,0.0062793,2389.8,2389.7,4.60328]
[1725539794652,3.86,2390.4,2389.7,10.1848]
[1725539794858,4.27836,2390.4,2390.3,3.2078]
[1725539795048,3.86,2390.4,2390.3,3.2078]
[1725539795258,3.86,2390.4,2390.3,3.62617]
[1725539795452,3.86,2390.4,2390.2,0.41838]
[1725539795644,3.86,2390.4,2390.3,3.2078]
[1725539795845,3.86,2390.4,2390.3,3.62617]
[1725539796049,0.0062793,2390.5,2390.3,3.62617]
[1725539796251,0.0062793,2390.5,2390.4,0.41836]
[1725539796451,0.0062793,2390.5,2390.3,3.2078]
[1725539796755,4.27836,2390.4,2390.3,3.2078]
[1725539797259,0.41839,2390.2,2390.1,0.0062793]
[1725539797760,3.86,2390.4,2390.1,0.0062793]
[1725539797761,0.41838,2390.3,2390.1,0.0062793]
[1725539797961,0.41839,2390.2,2390.1,0.0062793]
[1725539798361,4.60239,2390.2,2390.1,0.0062793]
[1725539798566,5.64837,2390.2,2390.1,0.0062793]
[1725539798761,5.64837,2390.2,2389.5,4.61551]
[1725539798762,15.08998,2390.2,2389.5,4.61551]
[1725539798966,3.86,2389.7,2389.6,3.2078]
[1725539799259,4.27848,2389.7,2389.6,3.2078]
[1725539799653,8.46328,2389.7,2389.2,4.197]
[1725539799859,0.4185,2389.6,2389.4,3.2078]
[1725539800059,1.04614,2389.9,2389.4,3.2078]
[1725539800060,3.86,2389.9,2389.4,3.2078]
[1725539800255,4.27845,2389.9,2389.7,3.2078]
[1725539800462,3.86,2389.9,2389.8,0.41846]
[1725539800660,3.86,2390.2,2389.8,4.1848]
[1725539800861,3.86,2390.2,2390.1,3.62621]
[1725539801562,3.86,2390.4,2390.3,0.41837]
[1725539801756,0.0062793,2390.5,2390.4,0.41836]
[1725539801958,0.0062793,2390.5,2390.4,3.62616]
[1725539802464,0.0062793,2390.5,2390.4,3.2078]
[1725539802761,0.0062793,2390.5,2390.4,3.62616]
[1725539803065,0.0062793,2390.5,2390.3,3.2078]
[1725539803853,0.0062793,2390.5,2390.3,3.62617]
[1725539804057,3.86,2390.4,2390.1,3.2078]
[1725539804357,3.86,2390.4,2390.1,3.6262]
[1725539804558,3.86,2390.4,2390.1,3.2078]
[1725539804762,4.2784,2390.2,2389.9,4.197]
[1725539805066,4.2784,2390.2,2389.9,4.61544]
[1725539805362,0.41841,2390.1,2389.9,4.197]
[1725539805669,3.86,2390.2,2390.0,0.41842]
[1725539805871,3.86,2390.2,2390.1,3.2078]
[1725539806070,4.27839,2390.2,2390.1,3.2078]
[1725539806472,8.46239,2390.2,2390.1,3.2078]
[1725539807471,8.044,2390.2,2390.1,3.2078]
[1725539807965,8.044,2390.2,2389.9,4.197]
[1725539807966,0.41843,2390.0,2389.9,4.197]
[1725539808470,4.60243,2390.0,2389.9,4.197]
[1725539809367,0.41844,2389.9,2389.8,3.2078]
[1725539809572,8.46244,2389.9,2389.8,3.2078]
[1725539809764,0.41848,2389.7,2389.4,3.2078]
[1725539809970,0.41855,2389.3,2389.1,7.4048]
[1725539810275,0.41854,2389.4,2389.1,3.2078]
[1725539810472,0.41855,2389.3,2389.1,3.2078]
[1725539810872,4.60415,2389.3,2389.1,3.2078]
[1725539811471,11.65053,2389.3,2389.1,3.2078]
[1725539811771,11.23198,2389.3,2388.8,4.197]
[1725539811972,3.86,2388.9,2388.8,4.197]
[1725539813687,0.41865,2388.8,2388.6,3.2140793]
[1725539813982,0.41865,2388.7,2388.6,0.0062793]
[1725539814191,1.83855,2388.7,2388.6,0.0062793]
[1725539814396,6.02495,2388.7,2388.6,0.0062793]
[1725539814890,1.83855,2388.7,2388.6,0.0062793]
[1725539815088,1.4199,2388.7,2388.6,0.0062793]
[1725539815497,3.86,2388.9,2388.6,3.2140793]
[1725539816582,3.86,2388.9,2388.6,3.6327493]
[1725539816786,3.86,2388.9,2388.6,3.2140793]
[1725539816987,3.86,2388.9,2388.6,3.6327393]
[1725539817184,3.86,2388.9,2388.6,3.2140793]
[1725539817392,3.86,2388.9,2388.7,0.41864]
[1725539817586,3.86,2388.9,2388.6,3.6327493]
[1725539817789,3.86,2388.9,2388.7,0.41865]
[1725539817995,3.86,2388.9,2388.8,0.41864]
[1725539818389,4.2848693,2389.1,2388.8,0.41864]
[1725539818589,4.2848693,2389.1,2388.9,3.2078]
[1725539818896,3.8662793,2389.1,2388.9,3.62642]
[1725539819198,3.8662793,2389.1,2388.9,3.2078]
[1725539819398,3.8662793,2389.1,2388.9,3.62641]
[1725539819888,3.8662793,2389.1,2389.0,0.4186]
[1725539820088,3.8662793,2389.1,2388.9,3.62641]
[1725539820291,4.2848793,2389.1,2388.7,2.9057]
[1725539820484,4.2848793,2389.1,2388.9,3.2078]
[1725539820688,0.4186,2389.0,2388.9,3.2078]
[1725539821084,1.8115,2389.0,2388.9,3.2078]
[1725539821491,0.41864,2388.8,2388.6,0.0062793]
[1725539821795,3.86,2388.7,2388.6,0.0062793]
[1725539822296,3.86,2388.9,2388.6,0.0062793]
[1725539822685,3.86,2388.7,2388.6,0.0062793]
[1725539822891,4.27865,2388.7,2388.6,0.0062793]
[1725539823195,0.41872,2388.3,2388.2,3.2078]
[1725539823400,4.27872,2388.3,2388.2,3.2078]
[1725539824792,3.86,2388.5,2388.2,3.2078]
[1725539825500,3.86,2388.5,2388.3,0.41872]
[1725539825695,3.86,2388.5,2388.2,3.62653]
[1725539826093,4.27869,2388.5,2388.2,3.2078]
[1725539826790,3.86,2388.3,2388.2,3.2078]
[1725539827496,4.27872,2388.3,2388.2,3.2078]
[1725539827698,3.86,2388.3,2388.2,3.2078]
[1725539828096,4.27872,2388.3,2388.2,3.2078]
[1725539828595,0.41878,2388.1,2387.9,3.2078]
[1725539828894,3.86,2388.0,2387.9,3.2078]
[1725539829490,1.04699,2387.9,2387.2,14.2438]
[1725539829689,3.2078,2388.3,2387.4,3.2078]
[1725539829690,3.86,2387.6,2387.4,3.2078]
[1725539829897,3.86,2387.6,2387.5,0.41886]
[1725539830091,0.0062793,2387.8,2387.4,3.2078]
[1725539830294,0.0062793,2387.8,2387.5,1.90826]
[1725539830494,0.0062793,2387.8,2387.7,3.2078]
[1725539830995,0.0062793,2387.8,2387.5,1.4894]
[1725539831192,0.41888,2387.5,2387.3,3.2078]
[1725539831493,3.86,2387.6,2387.5,0.41886]
[1725539832188,0.0062793,2387.8,2387.6,0.41883]
[1725539832491,0.0062793,2387.8,2387.6,3.2078]
[1725539832703,0.41883,2387.7,2387.6,3.2078]
[1725539833003,0.0062793,2387.8,2387.3,3.62669]
[1725539833004,0.41885,2387.6,2387.3,3.62669]
[1725539833308,0.41885,2387.6,2387.5,0.41886]
[1725539833309,3.86,2387.6,2387.5,0.41886]
[1725539833503,3.86,2387.6,2387.4,0.41887]
[1725539833804,4.27885,2387.6,2387.3,3.62669]
[1725539834205,3.86,2387.6,2387.3,3.62669]
[1725539834404,4.27886,2387.6,2387.3,3.62669]
[1725539834603,3.86,2387.4,2387.0,6.2256]
[1725539834803,0.41892,2387.2,2387.0,6.2256]
[1725539835102,0.41892,2387.2,2387.0,6.64455]
[1725539835300,0.41892,2387.2,2387.0,10.4144]
[1725539835301,0.41893,2387.2,2387.0,10.4144]
[1725539835496,4.27893,2387.1,2387.0,6.2256]
[1725539835701,3.86,2387.1,2387.0,6.2256]
[1725539835904,4.27893,2387.1,2387.0,6.2256]
[1725539836998,3.86,2387.1,2387.0,3.2078]
[1725539837203,4.27889,2387.4,2387.1,0.41892]
[1725539837394,3.86,2387.2,2387.0,3.2078]
[1725539837594,4.27892,2387.2,2387.0,3.2078]
[1725539838005,3.86,2387.2,2387.0,3.2078]
[1725539838208,3.86,2387.2,2387.1,0.41893]
[1725539838704,4.27888,2387.4,2387.2,0.41891]
[1725539838905,0.41891,2387.3,2387.0,3.2078]
[1725539839111,3.86,2387.4,2387.3,0.4189]
[1725539839413,3.86,2387.6,2387.5,0.41885]
[1725539840106,0.0062793,2387.8,2387.7,0.41883]
[1725539840403,0.4250993,2387.8,2387.4,6.1805]
[1725539840604,3.8662793,2387.8,2387.7,3.62663]
[1725539841106,0.0062793,2387.8,2387.7,3.62663]
[1725539842800,0.0062793,2387.8,2387.7,8.86171]
[1725539843112,3.86,2388.3,2388.2,0.41874]
[1725539843405,3.86,2388.3,2388.2,3.62654]
[1725539843608,4.27872,2388.3,2388.2,3.2078]
[1725539844105,3.86,2388.3,2388.2,3.2078]
[1725539844406,4.27872,2388.3,2388.2,3.2078]
[1725539845211,8.46592,2388.3,2388.2,3.2078]
[1725539845600,0.41876,2388.1,2388.0,0.0062793]
[1725539845803,4.27876,2388.1,2388.0,0.0062793]
[1725539846310,8.46596,2388.1,2388.0,0.0062793]
[1725539846612,9.87386,2388.1,2388.0,0.0062793]
[1725539846804,5.68666,2388.1,2388.0,0.0062793]
[1725539847009,3.86,2388.1,2388.0,0.0062793]
[1725539847202,0.0062793,2388.5,2388.0,0.0062793]
[1725539847203,3.86,2388.3,2388.1,0.41875]
[1725539847506,0.41876,2388.1,2388.0,0.0062793]
[1725539847700,4.27876,2388.1,2388.0,0.0062793]
[1725539847901,8.46596,2388.1,2388.0,0.0062793]
[1725539848110,14.46596,2388.1,2388.0,0.0062793]
[1725539848503,8.46596,2388.1,2388.0,0.0062793]
[1725539848698,8.0472,2388.1,2388.0,0.0062793]
[1725539848905,8.46596,2388.1,2388.0,0.0062793]
[1725539850217,9.95836,2388.1,2388.0,0.0062793]
[1725539852714,9.5396,2388.1,2388.0,0.0062793]
[1725539852914,3.86,2388.3,2388.0,0.0062793]
[1725539853120,4.27876,2388.1,2388.0,0.0062793]
[1725539853518,8.46596,2388.1,2388.0,0.0062793]
[1725539854020,8.0472,2388.1,2388.0,0.0062793]
[1725539854214,8.46596,2388.1,2388.0,0.0062793]
[1725539854411,8.0472,2388.1,2388.0,0.0062793]
[1725539854617,3.86,2388.1,2388.0,0.0062793]
[1725539854814,3.86,2388.4,2388.0,0.0062793]
[1725539855013,4.27872,2388.4,2388.2,3.2078]
[1725539855215,1.4005793,2388.5,2388.2,3.2078]
[1725539855216,0.0062793,2388.5,2388.2,3.2078]
[1725539855913,0.0062793,2388.5,2388.4,0.41871]
[1725539856108,0.4249793,2388.5,2388.2,3.62653]
[1725539856417,3.86,2388.3,2388.2,3.62654]
[1725539857523,3.86,2388.3,2388.2,3.2078]
[1725539857714,4.27872,2388.3,2388.2,3.2078]
[1725539858116,0.41876,2388.1,2388.0,0.0062793]
[1725539858418,4.27876,2388.1,2388.0,0.0062793]
[1725539858616,8.46596,2388.1,2388.0,0.0062793]
[1725539859725,9.51286,2388.1,2388.0,0.0062793]
[1725539860026,9.51286,2388.1,2387.5,3.2078]
[1725539860027,1.04698,2388.0,2387.5,3.2078]
[1725539860219,3.86,2387.6,2387.5,3.2078]
[1725539861019,4.27885,2387.6,2387.5,3.2078]
[1725539861213,4.27885,2387.6,2387.2,3.6267]
[1725539861415,3.86,2387.3,2387.2,3.2078]
[1725539861723,0.41894,2387.1,2386.8,3.2078]
[1725539861920,3.86,2386.9,2386.8,3.2078]
[1725539862425,3.86,2386.9,2386.8,3.62679]
[1725539863019,3.86,2387.1,2386.8,13.3974]
[1725539863222,0.0062793,2387.2,2386.8,3.2078]
[1725539863422,0.0062793,2387.2,2387.1,3.2078]
[1725539863619,9.5212993,2387.2,2387.1,3.2078]
[1725539863822,0.41898,2386.9,2386.8,3.2078]
[1725539864121,0.41902,2386.6,2386.5,3.2078]
[1725539864324,4.27902,2386.6,2386.5,3.2078]
[1725539864628,8.46942,2386.6,2386.5,3.2078]
[1725539864825,14.0504,2386.6,2386.1,3.2078]
[1725539865133,4.27909,2386.2,2386.1,3.2078]
[1725539865625,8.47029,2386.2,2386.1,3.2078]
[1725539865929,0.41919,2385.7,2385.4,7.4048]
[1725539866130,3.86,2385.6,2385.4,3.2078]
[1725539866328,3.8662793,2385.8,2385.7,0.41918]
[1725539866520,3.8662793,2385.8,2385.4,3.2078]
[1725539866723,3.8662793,2385.8,2385.6,0.41919]
[1725539866924,3.8662793,2385.8,2385.4,3.2078]
[1725539867122,3.86,2385.7,2385.5,0.41921]
[1725539867321,3.86,2385.7,2385.4,3.2078]
[1725539867625,0.0062793,2385.8,2385.4,3.2078]
[1725539867832,0.0062793,2385.8,2385.7,0.41918]
[1725539868033,0.0062793,2385.8,2385.7,3.62698]
[1725539868633,0.0062793,2385.8,2385.7,3.2078]
[1725539869032,0.0062793,2385.8,2385.7,3.62698]
[1725539869233,0.0062793,2385.8,2385.7,3.2078]
[1725539869730,0.0062793,2385.8,2385.7,3.62698]
[1725539869935,0.0062793,2385.8,2385.7,3.2078]
[1725539870433,0.0062793,2385.8,2385.7,3.62698]
[1725539870931,0.0062793,2385.8,2385.7,7.81818]
[1725539871529,0.0062793,2385.8,2385.7,13.81818]
[1725539872126,0.0062793,2385.8,2385.7,7.81818]
[1725539872430,0.0062793,2385.8,2385.7,3.62698]
[1725539872629,0.0062793,2385.8,2385.7,7.81818]
[1725539872832,0.0062793,2385.8,2385.7,13.81818]
[1725539873536,0.0062793,2385.8,2385.7,7.81818]
[1725539873942,0.0062793,2385.8,2385.7,13.81818]
[1725539874227,3.86,2386.2,2386.1,0.41911]
[1725539874432,3.86,2386.5,2386.3,0.41907]
[1725539874634,3.86,2386.5,2386.4,3.2078]
[1725539874835,3.86,2386.5,2386.4,3.62686]
[1725539875325,3.8662793,2386.7,2386.4,3.2078]
[1725539875529,4.27905,2386.5,2386.2,0.0062793]
[1725539875843,3.86,2386.3,2386.2,0.0062793]
[1725539876030,3.86,2386.3,2386.2,0.4253693]
[1725539876235,3.86,2386.5,2386.3,0.41906]
[1725539876429,3.86,2386.5,2386.4,3.2078]
[1725539876430,4.27904,2386.5,2386.4,3.2078]
[1725539876629,0.41906,2386.4,2386.2,0.0062793]
[1725539876933,3.86,2386.3,2386.2,0.0062793]
[1725539877738,8.0504,2386.3,2386.2,0.0062793]
[1725539877938,3.86,2386.3,2386.2,0.0062793]
[1725539878631,4.27907,2386.3,2386.2,0.0062793]
[1725539880244,3.86,2386.3,2386.2,0.0062793]
[1725539880434,0.0062793,2386.7,2386.2,0.0062793]
[1725539880435,3.8662793,2386.7,2386.2,4.1966793]
[1725539880635,3.86,2386.5,2386.2,0.0062793]
[1725539880840,3.86,2386.3,2386.2,0.0062793]
[1725539881035,4.27907,2386.3,2386.2,0.0062793]
[1725539881338,8.46947,2386.3,2386.2,0.0062793]
[1725539881534,4.27907,2386.3,2386.2,0.0062793]
[1725539881738,3.86,2386.3,2386.2,0.0062793]
[1725539882330,3.86,2386.5,2386.2,0.0062793]
[1725539882535,3.86,2386.5,2386.3,3.62687]
[1725539882737,3.86,2386.5,2386.2,0.0062793]
[1725539882931,4.27907,2386.3,2386.2,0.0062793]
[1725539883438,8.46947,2386.3,2386.1,3.2078]
[1725539883639,8.46947,2386.3,2385.4,8.9201]
[1725539883640,0.41917,2385.8,2385.4,8.9201]
[1725539883938,3.86,2385.5,2385.4,4.7231]
[1725539885750,8.47122,2385.5,2385.1,7.4048]
[1725539885935,3.86,2385.5,2385.1,7.82408]
[1725539886336,3.86,2385.5,2385.1,7.4048]
[1725539886535,4.27923,2385.5,2385.1,7.82408]
[1725539886743,3.86,2385.5,2385.2,0.41927]
[1725539887139,3.86,2386.0,2385.6,0.4192]
[1725539887345,3.86,2386.0,2385.7,3.2078]
[1725539887847,3.86,2386.0,2385.8,0.41915]
[1725539888039,3.86,2386.0,2385.7,3.62697]
[1725539888341,0.41916,2385.8,2385.7,3.2078]
[1725539888541,1.04791,2385.8,2384.8,6.2266]
[1725539888743,3.86,2385.2,2384.8,6.2266]
[1725539888947,3.86,2385.2,2385.1,3.62709]
[1725539888948,0.0062793,2385.2,2385.1,3.62709]
[1725539889246,0.0062793,2385.2,2385.1,9.62709]
[1725539889447,0.0062793,2385.2,2385.1,13.81989]
[1725539889949,3.2078,2386.5,2385.2,1.04816]
[1725539890134,7.0678,2386.5,2386.0,3.2078]
[1725539890333,0.41907,2386.4,2386.0,3.2078]
[1725539890539,0.41906,2386.4,2386.0,3.2078]
[1725539890746,0.41906,2386.4,2386.0,4.6245]
[1725539890940,3.86,2386.2,2386.0,3.2140793]
[1725539891146,3.86,2386.2,2386.0,0.0062793]